bitfinex-derivatives/quotes_BNBF0:USTF0_20250116
["timestamp","ask_amount","ask_price","bid_price","bid_amount"]
[1737057527419,0.27959905,715.31,714.25,1.04428176]
[1737057528722,0.27959905,715.31,714.25,2.40928176]
[1737057529222,0.27959905,715.31,714.27,1.04428176]
[1737057530420,0.27959905,715.31,714.25,1.365]
[1737057531422,0.27959905,715.31,714.27,1.04428176]
[1737057532119,0.27959905,715.31,714.28,1.04428176]
[1737057532720,0.27959905,715.31,714.27,1.04428176]
[1737057533926,0.27959905,715.31,714.25,3.63228176]
[1737057534722,0.27959905,715.31,714.25,2.588]
[1737057535523,0.27959905,715.31,714.27,1.04428176]
[1737057536226,0.27959905,715.31,714.27,2.21828176]
[1737057536623,0.27959905,715.31,714.28,1.04428176]
[1737057537824,0.27959905,715.31,714.3,1.04428176]
[1737057539832,0.27959905,715.31,714.27,2.21828176]
[1737057541532,0.27959905,715.31,714.28,1.04428176]
[1737057543135,0.27959905,715.31,714.27,2.21828176]
[1737057544834,0.27959905,715.31,714.32,1.04428176]
[1737057545736,0.27959905,715.31,714.33,1.04428176]
[1737057548538,0.27959905,715.31,714.35,1.04428176]
[1737057549539,0.27959905,715.31,714.37,1.04428176]
[1737057550440,0.27959905,715.31,714.36,1.04428176]
[1737057550933,0.27959905,715.31,714.36,2.08028176]
[1737057552342,0.27959905,715.31,714.37,1.04428176]
[1737057553436,0.27959905,715.31,714.38,1.04428176]
[1737057554337,0.27959905,715.31,714.37,1.04428176]
[1737057555241,0.27959905,715.31,714.36,1.036]
[1737057559444,0.27959905,715.31,714.37,1.04428176]
[1737057561047,0.27959905,715.31,714.38,0.25701828]
[1737057561240,1.04897256,715.78,714.38,0.25701828]
[1737057561545,1.04897256,716.02,714.65,1.04428176]
[1737057561746,0.2793257,716.01,714.65,1.04428176]
[1737057562746,0.2793257,716.01,714.65,1.289]
[1737057564345,0.2793257,716.01,714.65,2.523]
[1737057571147,0.2793257,716.01,714.65,3.745]
[1737057592567,1.32829826,716.01,714.65,3.745]
[1737057593563,1.04897256,715.98,714.65,3.745]
[1737057593864,0.27934521,715.96,714.65,3.745]
[1737057594463,1.32831777,715.96,714.65,3.745]
[1737057595359,1.04897256,715.91,714.65,3.745]
[1737057596465,1.04897256,715.88,714.65,3.745]
[1737057597161,0.27938033,715.87,714.65,3.745]
[1737057608374,1.04897256,715.8,714.65,3.745]
[1737057608673,0.27941155,715.79,714.65,3.745]
[1737057611367,1.32838411,715.79,714.65,3.745]
[1737057612471,0.27941155,715.79,714.65,3.745]
[1737057620182,0.27941155,715.79,714.71,1.04428176]
[1737057620981,0.27941155,715.79,714.72,1.04428176]
[1737057621475,0.27941155,715.79,714.72,4.52728176]
[1737057622281,0.27941155,715.79,714.72,3.483]
[1737057648403,0.27941155,715.79,714.72,4.52728176]
[1737057649207,0.27941155,715.79,714.73,1.04428176]
[1737057650599,0.27941155,715.79,714.73,3.77928176]
[1737057650999,0.27941155,715.79,714.8,1.04428176]
[1737057652005,0.27941155,715.79,714.73,2.735]
[1737057652006,0.27941155,715.79,714.79,1.04428176]
[1737057654709,0.27941155,715.79,714.8,1.04428176]
[1737057657608,0.27941155,715.79,714.81,1.04428176]
[1737057660009,0.27941155,715.79,714.82,1.04428176]
[1737057661509,0.27941155,715.79,714.81,1.04428176]
[1737057662612,0.27941155,715.79,714.85,1.04428176]
[1737057663709,0.27941155,715.79,714.84,1.04428176]
[1737057664706,0.27941155,715.79,714.73,2.735]
[1737057664707,0.27941155,715.79,714.79,1.04428176]
[1737057665507,0.27941155,715.79,714.78,1.04428176]
[1737057666412,0.27941155,715.79,714.77,1.04428176]
[1737057667612,0.27941155,715.79,714.73,2.735]
[1737057676626,0.27941155,715.79,714.76,1.04428176]
[1737057677526,0.27941155,715.79,714.73,1.777]
[1737057678125,0.27941155,715.79,714.73,2.709]
[1737057684931,0.27941155,715.79,714.75,1.04428176]
[1737057685732,0.27941155,715.79,714.73,0.932]
[1737057686331,0.27941155,715.79,714.73,2.447]
[1737057686532,0.27941155,715.79,714.73,3.38]
[1737057696135,0.27941155,715.79,714.76,1.04428176]
[1737057697435,0.27941155,715.79,714.73,3.38]
[1737057697436,0.27941155,715.79,714.77,1.04428176]
[1737057698236,0.27941155,715.79,714.85,1.04428176]
[1737057698829,0.27941155,715.79,714.85,2.15928176]
[1737057699035,0.27941155,715.79,714.85,1.115]
[1737057700438,0.27941155,715.79,714.9,1.04428176]
[1737057702333,0.27941155,715.79,714.9,2.15228176]
[1737057703934,0.27941155,715.79,714.9,1.108]
[1737057709740,0.27941155,715.79,714.9,1.926]
[1737057712945,1.04897256,716.48,714.9,1.926]
[1737057713244,0.27915026,716.46,714.9,1.926]
[1737057713841,1.04897256,716.32,714.9,1.926]
[1737057714838,0.27915026,716.46,714.9,1.926]
[1737057714839,1.04897256,716.36,714.93,1.04428176]
[1737057716948,1.04897256,716.39,714.91,1.04428176]
[1737057717946,0.27918533,716.37,714.9,1.926]
[1737057721952,1.04897256,716.31,714.9,1.926]
[1737057722251,0.27921651,716.29,714.9,1.926]
[1737057722951,1.04897256,716.21,714.9,1.926]
[1737057723152,0.2792555,716.19,714.9,1.926]
[1737057723752,1.32822806,716.19,714.9,1.926]
[1737057724659,0.2792555,716.19,714.9,1.926]
[1737057726459,1.04897256,716.15,714.9,1.926]
[1737057726658,0.279275,716.14,714.9,1.926]
[1737057727061,0.279275,716.14,714.9,2.872]
[1737057783306,1.32824756,716.14,714.9,2.872]
[1737057784106,0.279275,716.14,714.9,2.872]
[1737057813726,0.279275,716.14,714.93,1.04428176]
[1737057814829,0.279275,716.14,714.95,1.04428176]
[1737057815127,0.279275,716.14,714.95,4.75628176]
[1737057815830,0.279275,716.14,714.98,1.04428176]
[1737057816526,0.279275,716.14,714.95,3.712]
[1737057816527,0.279275,716.14,715.01,1.04428176]
[1737057818034,0.279275,716.14,714.95,3.712]
[1737057836751,0.279275,716.14,714.95,4.75628176]
[1737057837648,0.279275,716.14,714.96,1.04428176]
[1737057838046,0.279275,716.14,714.97,0.2568726]
[1737057838651,0.279275,716.14,715.0,1.04428176]
[1737057839047,0.279275,716.14,715.0,5.03828176]
[1737057839757,0.279275,716.14,715.01,1.30115693]
[1737057840055,0.279275,716.14,715.01,1.04428176]
[1737057840656,0.279275,716.14,715.04,1.04428176]
[1737057841556,0.279275,716.14,715.03,1.04428176]
[1737057843859,0.279275,716.14,715.06,1.04428176]
[1737057844258,1.04897256,716.48,715.07,0.27969289]
[1737057845658,1.04897256,717.09,715.07,0.27969289]
[1737057845954,0.27894391,716.99,715.07,0.27969289]
[1737057846860,0.27894391,716.99,715.09,1.04428176]
[1737057847258,0.27894391,716.99,715.1,0.25678164]
[1737057847560,0.27894391,716.99,715.08,1.04428176]
[1737057847958,0.27894391,716.99,715.09,0.27968507]
[1737057853464,0.27894391,716.99,715.1,0.2567765]
[1737057853665,0.27894391,716.99,715.09,0.27968507]
[1737057863368,0.27894391,716.99,715.09,1.50368507]
[1737057864369,1.04897256,716.8,715.09,1.50368507]
[1737057864566,0.27902564,716.78,715.09,1.50368507]
[1737057865371,1.04897256,716.72,715.09,1.50368507]
[1737057865567,0.27905678,716.7,715.09,1.50368507]
[1737057866565,0.27905678,716.7,715.09,1.224]
[1737057868267,0.27905678,716.7,715.09,2.482]
[1737057870275,0.27905678,716.7,715.09,3.363]
[1737057872076,1.04897256,716.44,715.09,3.363]
[1737057873074,0.27905678,716.7,715.09,3.363]
[1737057874877,1.32802934,716.7,715.09,3.363]
[1737057875476,0.27905678,716.7,715.09,3.363]
[1737057882381,1.04897256,716.58,715.09,3.363]
[1737057882583,0.2791113,716.56,715.09,3.363]
[1737057886891,0.2791113,716.56,715.09,1.87722058]
[1737057887187,0.2791113,716.56,715.09,0.96222058]
[1737057887382,0.2791113,716.56,715.09,0.76176096]
[1737057887587,0.2791113,716.56,713.44,1.04428176]
[1737057887786,0.2791113,716.56,713.46,0.28032405]
[1737057887987,0.2791113,716.56,713.47,0.85755689]
[1737057888182,0.2791113,716.56,713.48,0.25721247]
[1737057888383,0.2791113,716.56,713.49,0.25721247]
[1737057888687,0.2791113,716.56,713.5,0.25721247]
[1737057888881,0.2791113,716.56,713.51,0.25721247]
[1737057889087,1.04897256,716.49,713.51,1.04428176]
[1737057889283,1.04897256,716.49,713.52,0.8572085]
[1737057889489,1.04897256,716.49,713.53,0.25717201]
[1737057889688,1.04897256,716.49,713.54,0.25717201]
[1737057889987,1.04897256,716.49,713.55,0.25717201]
[1737057890182,1.04897256,716.42,713.68,1.04428176]
[1737057890584,1.04897256,716.42,713.69,0.85730729]
[1737057890781,1.04897256,716.42,713.7,0.25718653]
[1737057890982,1.04897256,716.42,713.71,0.25718653]
[1737057891187,1.04897256,716.42,713.73,0.280218]
[1737057891490,0.27921651,716.29,713.74,0.85730729]
[1737057891685,0.27921651,716.29,713.75,0.25718653]
[1737057891881,0.27921651,716.29,713.76,0.25718653]
[1737057892086,0.27921651,716.29,713.77,0.25718653]
[1737057892287,0.27921651,716.29,713.78,0.25718653]
[1737057892482,0.27921651,716.29,713.79,0.25718653]
[1737057892687,0.27921651,716.29,713.73,0.280218]
[1737057893684,0.27921651,716.29,713.79,1.04428176]
[1737057894585,0.27921651,716.29,713.8,0.25716943]
[1737057894989,0.27921651,716.29,713.79,0.25716943]
[1737057895190,0.27921651,716.29,713.81,0.53735603]
[1737057895390,0.27921651,716.29,713.83,0.28017875]
[1737057895591,0.27921651,716.29,713.84,0.25716943]
[1737057895791,0.27921651,716.29,713.86,0.28016697]
[1737057896090,0.27921651,716.29,713.87,0.25716943]
[1737057896291,0.27921651,716.29,713.89,0.2801552]
[1737057896484,0.27921651,716.29,713.9,0.25713248]
[1737057896688,0.27921651,716.29,713.92,0.28014343]
[1737057896888,0.27921651,716.29,713.95,1.04428176]
[1737057897087,0.27921651,716.29,713.96,0.53726021]
[1737057897291,0.27921651,716.29,713.95,1.04428176]
[1737057897292,0.27921651,716.29,713.97,0.53725629]
[1737057897590,0.27921651,716.29,713.98,0.53725237]
[1737057897792,0.27921651,716.29,713.99,1.30141424]
[1737057897986,0.27921651,716.29,714.0,0.25713248]
[1737057898994,0.27921651,716.29,714.01,0.25713248]
[1737057899191,0.27921651,716.29,714.02,0.25717268]
[1737057899391,0.27921651,716.29,714.03,0.25717268]
[1737057899688,0.27921651,716.29,714.04,0.25717268]
[1737057899890,0.27921651,716.29,714.05,0.25717268]
[1737057900091,0.27921651,716.29,714.06,0.25717268]
[1737057900295,0.27921651,716.29,714.07,0.25717268]
[1737057900589,0.27921651,716.29,714.02,1.04428176]
[1737057900785,0.27921651,716.29,714.03,0.5372426]
[1737057900989,0.27921651,716.29,714.04,0.25714233]
[1737057901288,0.27921651,716.29,714.05,0.5372338]
[1737057901493,0.27921651,716.29,714.12,1.04428176]
[1737057901693,0.27921651,716.29,714.13,0.25714137]
[1737057901994,0.27921651,716.29,714.14,0.2571271]
[1737057902194,0.27921651,716.29,714.15,0.2571271]
[1737057902394,0.27921651,716.29,714.16,0.2571271]
[1737057903287,0.27921651,716.29,714.19,1.04428176]
[1737057903696,0.27921651,716.29,714.2,0.25716908]
[1737057903893,0.27921651,716.29,714.21,0.25718268]
[1737057904087,0.27921651,716.29,714.22,0.25718268]
[1737057904294,1.04897256,716.15,714.2,1.04428176]
[1737057904794,1.04897256,716.15,714.2,1.96228176]
[1737057905187,0.2792789,716.13,714.2,1.96228176]
[1737057905390,0.2792789,716.13,714.2,0.918]
[1737057909892,1.04897256,716.0,714.2,0.918]
[1737057910094,0.27933741,715.98,714.24,1.04428176]
[1737057910597,1.32830997,715.98,714.24,1.04428176]
[1737057911596,1.32830997,715.98,714.25,1.04428176]
[1737057912803,1.04897256,715.95,714.24,1.04428176]
[1737057913199,1.04897256,715.92,714.25,1.04428176]
[1737057913701,1.04897256,715.92,714.25,2.08928176]
[1737057914102,1.04897256,715.89,714.26,1.04428176]
[1737057915101,0.27933741,715.98,714.25,1.045]
[1737057917206,1.32830997,715.98,714.25,1.045]
[1737057918301,1.04897256,715.96,714.25,1.045]
[1737057919299,1.04897256,715.93,714.25,1.045]
[1737057920009,0.27936472,715.91,714.25,2.271]
[1737057921808,1.04897256,715.89,714.25,2.271]
[1737057922010,0.27938033,715.87,714.25,2.271]
[1737057922804,1.04897256,715.71,714.26,1.04428176]
[1737057923211,1.04897256,715.71,714.27,0.25711239]
[1737057923507,1.04897256,715.71,714.26,1.04428176]
[1737057923708,1.04897256,715.71,714.27,0.25709118]
[1737057924009,0.27944669,715.7,714.41,1.04428176]
[1737057924809,0.27944669,715.7,714.39,1.04428176]
[1737057926212,1.32841925,715.7,714.27,1.04428176]
[1737057927110,1.04897256,715.68,714.25,2.271]
[1737057927505,0.2794584,715.67,714.25,2.271]
[1737057927909,1.04897256,715.65,714.25,2.271]
[1737057928108,0.27947012,715.64,714.25,2.271]
[1737057931216,0.27947012,715.64,714.26,1.04428176]
[1737057931815,0.27947012,715.64,714.27,1.04428176]
[1737057932011,0.27947012,715.64,714.27,1.30141614]
[1737057932217,0.27947012,715.64,714.27,1.04428176]
[1737057932713,0.27947012,715.64,714.28,0.25711617]
[1737057932917,0.27947012,715.64,714.27,1.04428176]
[1737057933119,0.27947012,715.64,714.34,1.04428176]
[1737057934018,0.27947012,715.64,714.3,1.04428176]
[1737057934722,0.27947012,715.64,714.29,1.04428176]
[1737057935525,0.27947012,715.64,714.28,0.943]
[1737057939818,0.27947012,715.64,714.28,2.062]
[1737057941624,0.27947012,715.64,714.29,0.25708705]
[1737057942426,0.27947012,715.64,714.29,1.30136881]
[1737057942625,0.27947012,715.64,714.29,1.04428176]
[1737057943225,0.27947012,715.64,714.29,1.99128176]
[1737057943531,0.27947012,715.64,714.3,0.25710233]
[1737057959041,0.27947012,715.64,714.29,0.947]
[1737057959743,1.04897256,715.62,714.29,0.947]
[1737057959943,0.27948574,715.6,714.29,0.947]
[1737057961344,0.27948574,715.6,714.29,2.064]
[1737057962942,0.27948574,715.6,714.29,3.082]
[1737057989853,1.04897256,715.54,714.29,3.082]
[1737057990055,0.27951308,715.53,714.29,3.082]
[1737057997970,0.08282195,715.53,714.29,3.082]
[1737058015881,1.13179451,715.53,714.29,3.082]
[1737058016582,0.08282195,715.53,714.29,3.082]
[1737058037802,1.04897256,715.2,714.29,3.082]
[1737058038203,0.27964596,715.19,714.29,3.082]
[1737058110959,1.0465212,715.59,714.29,3.082]
[1737058111159,1.0465212,716.14,714.29,3.082]
[1737058111358,0.2792828,716.12,714.29,3.082]
[1737058124377,1.0465212,715.98,714.29,3.082]
[1737058124579,0.27934521,715.96,714.29,3.082]
[1737058125278,1.0465212,715.95,714.29,3.082]
[1737058125480,0.27935692,715.93,714.29,3.082]
[1737058127080,1.0465212,715.87,714.29,3.082]
[1737058127379,0.27938813,715.85,714.29,3.082]
[1737058128880,1.0465212,715.84,714.29,3.082]
[1737058129175,0.27939984,715.82,714.29,3.082]
[1737058129981,1.32592104,715.82,714.29,3.082]
[1737058130481,1.0465212,715.8,714.29,3.082]
[1737058130674,0.27941546,715.78,714.29,3.082]
[1737058134883,1.0465212,715.74,714.29,3.082]
[1737058135283,0.27943498,715.73,714.29,3.082]
[1737058135779,1.0465212,715.72,714.29,3.082]
[1737058135984,0.27944279,715.71,714.29,3.082]
[1737058139181,1.0465212,715.68,714.29,4.12248288]
[1737058139382,0.2794584,715.67,714.29,4.12248288]
[1737058140588,0.2794584,715.67,714.29,3.082]
[1737058143687,0.2794584,715.67,714.36,1.04048288]
[1737058144486,0.2794584,715.67,714.35,1.04048288]
[1737058145084,0.2794584,715.67,714.35,4.47348288]
[1737058145388,0.2794584,715.67,714.35,3.433]
[1737058147988,0.2794584,715.67,714.37,1.04048288]
[1737058148989,0.2794584,715.67,714.36,1.04048288]
[1737058150092,0.2794584,715.67,714.38,1.04048288]
[1737058151892,0.2794584,715.67,714.39,0.25706393]
[1737058152093,0.2794584,715.67,714.4,1.04048288]
[1737058152288,0.2794584,715.67,714.41,0.25706393]
[1737058152691,0.2794584,715.67,714.4,1.04048288]
[1737058152892,0.2794584,715.67,714.44,1.04048288]
[1737058153789,0.2794584,715.67,714.43,1.04048288]
[1737058154491,0.2794584,715.67,714.35,3.433]
[1737058157498,0.2794584,715.67,714.36,0.27997088]
[1737058158997,0.2794584,715.67,714.36,2.66797088]
[1737058171407,0.2794584,715.67,714.36,3.70197088]
[1737058172105,0.2794584,715.67,714.37,0.25704448]
[1737058173004,0.2794584,715.67,714.46,1.04048288]
[1737058174205,0.2794584,715.67,714.5,1.04048288]
[1737058175205,0.2794584,715.67,714.53,1.04048288]
[1737058177006,0.2794584,715.67,714.54,1.04048288]
[1737058178110,0.2794584,715.67,714.55,1.04048288]
[1737058179312,0.2794584,715.67,714.59,1.04048288]
[1737058180108,0.2794584,715.67,714.54,1.04048288]
[1737058182417,0.2794584,715.67,714.55,1.04048288]
[1737058183115,0.2794584,715.67,714.55,0.989]
[1737058185011,0.2794584,715.67,714.59,1.04048288]
[1737058185211,0.2794584,715.67,714.59,2.38848288]
[1737058186115,0.2794584,715.67,714.59,1.348]
[1737058186919,0.2794584,715.67,714.6,1.04048288]
[1737058187919,0.2794584,715.67,714.61,1.04048288]
[1737058189618,0.2794584,715.67,714.6,1.04048288]
[1737058190522,0.2794584,715.67,714.59,1.348]
[1737058190523,0.2794584,715.67,714.61,1.04048288]
[1737058191616,0.2794584,715.67,714.6,1.04048288]
[1737058192523,0.2794584,715.67,714.61,1.04048288]
[1737058195322,0.2794584,715.67,714.62,1.04048288]
[1737058196319,0.2794584,715.67,714.6,0.795]
[1737058196320,0.2794584,715.67,714.6,1.83548288]
[1737058197624,0.2794584,715.67,714.6,0.795]
[1737058198526,0.2794584,715.67,714.6,1.791]
[1737058202327,0.2794584,715.67,714.6,2.588]
[1737058269679,1.0465212,715.64,714.6,2.588]
[1737058270678,1.0465212,715.65,714.6,2.588]
[1737058270979,0.27947402,715.63,714.6,2.588]
[1737058272173,1.0465212,715.4,714.6,2.588]
[1737058272986,1.0465212,715.41,714.6,2.588]
[1737058273988,1.0465212,715.4,714.6,2.588]
[1737058275087,1.0465212,715.56,714.6,2.588]
[1737058275283,0.27950527,715.55,714.6,2.588]
[1737058288700,1.32602647,715.55,714.6,2.588]
[1737058289495,1.0465212,715.47,714.6,2.588]
[1737058290698,1.0465212,715.48,714.6,2.588]
[1737058291294,0.27953652,715.47,714.6,2.588]
[1737058302602,1.0465212,715.45,714.6,2.588]
[1737058303300,0.27953652,715.47,714.6,2.588]
[1737058336124,1.0465212,716.22,714.6,2.588]
[1737058336423,0.2792516,716.2,714.6,2.588]
[1737058338928,1.0465212,716.19,714.6,2.588]
[1737058340027,0.2792633,716.17,714.6,2.588]
[1737058340929,1.0465212,716.15,714.6,2.588]
[1737058341629,0.2792789,716.13,714.6,2.588]
[1737058341832,1.0465212,716.07,714.6,2.588]
[1737058342130,0.2793101,716.05,714.6,2.588]
[1737058343032,1.3258313,716.05,714.6,2.588]
[1737058344033,1.0465212,716.01,714.6,2.588]
[1737058344233,0.2793296,716.0,714.6,2.588]
[1737058345232,1.0465212,715.99,714.62,1.04048288]
[1737058345531,0.27933741,715.98,714.62,1.04048288]
[1737058346627,0.27933741,715.98,714.62,4.61548288]
[1737058347128,0.27933741,715.98,714.62,3.575]
[1737058357340,1.0465212,715.92,714.62,4.61548288]
[1737058357539,0.27936472,715.91,714.62,4.61548288]
[1737058359042,0.27936472,715.91,714.62,3.575]
[1737058366348,0.27936472,715.91,714.62,4.61548288]
[1737058367648,0.27936472,715.91,714.73,1.04048288]
[1737058368650,0.27936472,715.91,714.74,1.04048288]
[1737058369547,0.27936472,715.91,714.75,1.04048288]
[1737058370445,0.27936472,715.91,714.73,1.04048288]
[1737058371248,0.27936472,715.91,714.62,3.575]
[1737058371249,0.27936472,715.91,714.74,1.04048288]
[1737058372050,0.27936472,715.91,714.68,1.04048288]
[1737058372950,0.27936472,715.91,714.68,0.957]
[1737058375849,0.27936472,715.91,714.68,1.972]
[1737058377451,0.27936472,715.91,714.77,1.04048288]
[1737058377849,0.27936472,715.91,714.77,2.63148288]
[1737058378248,0.27936472,715.91,714.77,1.591]
[1737058379257,0.27936472,715.91,714.79,1.04048288]
[1737058380155,0.27936472,715.91,714.77,1.591]
[1737058382257,0.27936472,715.91,714.78,1.04048288]
[1737058383059,0.27936472,715.91,714.77,2.63148288]
[1737058385258,0.27936472,715.91,714.77,1.591]
[1737058386060,0.27936472,715.91,714.77,2.879]
[1737058401772,0.27936472,715.91,714.79,1.04048288]
[1737058403173,0.27936472,715.91,714.79,2.59148288]
[1737058403972,0.27936472,715.91,714.83,1.04048288]
[1737058404575,0.27936472,715.91,714.81,1.04048288]
[1737058405478,0.27936472,715.91,714.8,1.04048288]
[1737058406072,0.27936472,715.91,714.8,2.03748288]
[1737058407479,0.27936472,715.91,714.8,2.308]
[1737058412882,1.32588592,715.91,714.8,2.308]
[1737058415688,1.0465212,715.9,714.8,2.308]
[1737058416989,0.27936472,715.91,714.8,2.308]
[1737058416990,1.32588592,715.91,714.8,2.308]
[1737058417791,1.0465212,715.9,714.8,2.308]
[1737058418587,0.27937252,715.89,714.8,2.308]
[1737058419893,1.0465212,715.88,714.8,2.308]
[1737058420191,1.32589763,715.88,714.8,2.308]
[1737058420890,0.27938033,715.87,714.8,2.308]
[1737058429297,0.27938033,715.87,714.8,3.688]
[1737058438004,1.32590153,715.87,714.8,3.688]
[1737058441507,0.27938033,715.87,714.8,3.688]
[1737058442408,1.32590153,715.87,714.8,3.688]
[1737058444006,0.27938033,715.87,714.8,3.688]
[1737058456225,1.0465212,715.67,714.8,3.688]
[1737058456924,1.0465212,715.68,714.8,3.688]
[1737058457826,1.0465212,715.7,714.8,3.688]
[1737058458024,0.2794506,715.69,714.8,3.688]
[1737058467134,1.0465212,715.68,714.8,3.688]
[1737058467431,0.2794584,715.67,714.8,3.688]
[1737058500151,1.04330524,717.63,714.8,3.688]
[1737058500347,0.27874952,717.49,714.8,3.688]
[1737058501153,1.04330524,717.11,714.8,3.688]
[1737058501349,0.27894002,717.0,714.8,3.688]
[1737058503351,1.04330524,716.71,714.8,3.688]
[1737058503749,1.04330524,716.71,714.81,0.25693884]
[1737058504254,1.04330524,716.8,714.82,0.25693884]
[1737058504457,0.27902564,716.78,714.83,0.25693884]
[1737058504753,0.27902564,716.78,714.44,0.59845217]
[1737058504953,0.27902564,716.78,714.45,0.85538765]
[1737058505154,0.27902564,716.78,714.46,0.85538765]
[1737058505354,0.27902564,716.78,714.47,0.85532422]
[1737058505655,0.27902564,716.78,714.48,1.13524808]
[1737058505953,0.27902564,716.78,714.49,0.27991994]
[1737058507355,0.27902564,716.78,714.5,0.85528942]
[1737058507653,0.27902564,716.78,714.51,0.2799121]
[1737058508055,0.27902564,716.78,714.52,0.25692704]
[1737058508348,0.27902564,716.78,714.53,0.27990427]
[1737058508550,0.27902564,716.78,714.54,0.25692704]
[1737058508747,0.27902564,716.78,714.54,0.85527793]
[1737058508951,0.27902564,716.78,714.55,0.85527793]
[1737058509152,0.27902564,716.78,714.56,1.13517045]
[1737058509349,0.27902564,716.78,714.57,1.13516653]
[1737058509550,0.27902564,716.78,714.58,0.53681172]
[1737058509754,0.27902564,716.78,714.59,0.53680781]
[1737058509955,0.27902564,716.78,714.6,0.53680389]
[1737058510157,0.27902564,716.78,714.61,0.53680356]
[1737058510455,0.27902564,716.78,714.62,0.53679965]
[1737058510660,0.27902564,716.78,714.63,0.53679573]
[1737058510858,0.27902564,716.78,714.64,0.25693063]
[1737058511060,0.27902564,716.78,714.65,0.27985727]
[1737058511253,0.27902564,716.78,714.66,0.25693063]
[1737058511451,0.27902564,716.78,714.67,0.27984944]
[1737058511655,0.27902564,716.78,714.68,0.25693063]
[1737058512760,0.27902564,716.78,714.69,0.25691895]
[1737058512959,0.27902564,716.78,714.67,0.27984944]
[1737058512960,0.27902564,716.78,714.7,0.25691895]
[1737058513260,0.27902564,716.78,714.71,0.25691895]
[1737058513460,0.27902564,716.78,714.72,0.25691895]
[1737058513661,0.27902564,716.78,714.73,0.25691895]
[1737058513861,0.27902564,716.78,714.74,0.25691895]
[1737058514056,0.27902564,716.78,714.75,0.25691895]
[1737058514261,0.27902564,716.78,714.76,0.25691895]
[1737058514560,0.27902564,716.78,714.77,0.25691895]
[1737058514760,0.27902564,716.78,714.78,0.25691895]
[1737058514961,0.27902564,716.78,714.79,0.25691895]
[1737058515160,0.27902564,716.78,714.8,0.25691895]
[1737058515356,0.27902564,716.78,714.81,0.25691895]
[1737058515562,0.27902564,716.78,714.82,0.25691895]
[1737058515762,0.27902564,716.78,714.83,0.25691895]
[1737058515959,0.27902564,716.78,714.84,0.25691895]
[1737058516160,0.27902564,716.78,714.67,0.27984944]
[1737058516357,0.27902564,716.78,714.68,0.25690375]
[1737058517763,0.27902564,716.78,714.69,0.2798416]
[1737058517958,0.27902564,716.78,714.7,0.25690375]
[1737058518159,0.27902564,716.78,714.71,0.27983377]
[1737058518361,0.27902564,716.78,714.72,0.25687282]
[1737058518664,0.27902564,716.78,714.73,0.27982594]
[1737058518864,0.27902564,716.78,714.74,0.25687282]
[1737058519066,0.27902564,716.78,714.75,0.27981811]
[1737058519368,0.27902564,716.78,714.76,0.25687282]
[1737058519566,0.27902564,716.78,714.77,0.27981028]
[1737058519867,0.27902564,716.78,714.78,0.25687282]
[1737058520067,0.27902564,716.78,714.79,0.27980245]
[1737058520267,0.27902564,716.78,714.8,0.25687282]
[1737058520469,0.27902564,716.78,714.79,0.27980245]
[1737058524270,0.27902564,716.78,714.79,1.44980245]
[1737058530475,0.27902564,716.78,714.79,2.78880245]
[1737058533678,1.04330524,716.51,714.88,1.03859901]
[1737058534682,1.04330524,716.47,714.88,1.03859901]
[1737058535182,0.27915416,716.45,714.88,1.03859901]
[1737058535584,0.27915416,716.45,714.79,2.78880245]
[1737058536284,0.27915416,716.45,714.79,4.06880245]
[1737058536685,0.27915416,716.45,714.8,1.03859901]
[1737058537584,0.27915416,716.45,714.84,1.03859901]
[1737058538786,0.27915416,716.45,714.82,1.03859901]
[1737058539587,0.27915416,716.45,714.79,5.10740146]
[1737058540689,0.27915416,716.45,714.79,4.06880245]
[1737058541590,0.27915416,716.45,714.83,1.03859901]
[1737058542487,0.27915416,716.45,714.8,1.03859901]
[1737058543282,0.27915416,716.45,714.79,4.06880245]
[1737058548189,1.04330524,716.39,714.81,1.03859901]
[1737058548490,0.27918533,716.37,714.81,1.03859901]
[1737058548892,0.27918533,716.37,714.82,0.25693302]
[1737058549594,0.27918533,716.37,714.82,2.77993302]
[1737058549793,1.04330524,716.3,714.86,1.03859901]
[1737058549984,0.27921651,716.29,714.86,1.03859901]
[1737058551993,0.27921651,716.29,714.95,1.03859901]
[1737058552991,0.27921651,716.29,714.82,3.56159901]
[1737058553996,0.27921651,716.29,714.83,1.03859901]
[1737058556594,0.27921651,716.29,714.83,2.23559901]
[1737058557496,0.27921651,716.29,714.83,1.197]
[1737058558498,0.27921651,716.29,714.84,0.25687893]
[1737058558998,0.27921651,716.29,714.83,2.23559901]